{"text_format":"1","workbook":"xlsx","n_sheets":2,"sheets":["كشف المشتركين","قسيمة الإشتراك"],"not_rendered":{"charts":0,"images":0,"macros":1,"external_links":0,"defined_names":1,"comments":0,"pivot_tables":0},"unopened":[],"bounds":{"document_bytes":16777216,"sheet_cells":100000,"rows_first":2000,"rows_last":500,"rows_between":2000,"halvings":0,"cell_chars":16384,"cell_head_chars":4096},"cells_cut":0,"cells_raw":0,"read":"whole","date_system":"1900"}

{"sheet":"كشف المشتركين","index":0,"n_rows":654,"n_cols":16,"rows_kept":654,"cut":false,"hidden":false,"merged":[]}
["التسلسل","رقم المساهم","اسم المساهم","شهر 1","شهر 2","شهر 3","شهر 4","شهر 5","شهر 6","شهر 7","شهر 8","شهر 9","شهر 10","شهر 11","شهر 12","المجموع"]
[1,1,"محمد",10,0,10,10,10,0,10,10,0,10,10,9,{"$f":"SUM(D2:O2)","v":89}]
[2,2,"خالد",0,10,10,10,10,10,10,10,10,10,10,10,110]
[3,3,"حسن",10,10,10,10,10,0,10,0,0,0,10,10,80]
[4,4,"داود",10,10,10,10,10,10,10,10,10,0,0,0,90]
[5,5,"عماد",10,10,10,10,10,10,0,0,0,0,10,0,70]
[6,6,"رائد",10,10,10,10,10,0,0,0,0,0,0,0,50]
[7,7,"زهير",10,10,10,10,10,10,10,10,10,10,10,0,110]
[8,8,"أنس",10,10,10,10,10,10,10,10,10,10,10,10,120]
[9,9,"علي",10,10,10,10,10,10,10,10,0,0,0,0,80]
[10,10,"أحمد",10,10,10,10,10,10,10,0,0,10,10,10,100]
[11,11,"مصعب",10,10,10,10,10,10,10,10,10,10,10,10,120]
[12,1,"محمد",10,0,10,10,10,0,10,10,0,10,10,10,90]
[13,2,"خالد",0,10,10,10,10,10,10,10,10,10,10,10,110]
[14,3,"حسن",10,10,10,10,10,0,10,0,0,0,10,10,80]
[15,4,"داود",10,10,10,10,10,10,10,10,10,0,0,0,90]
[16,5,"عماد",10,10,10,10,10,10,0,0,0,0,10,0,70]
[17,6,"رائد",10,10,10,10,10,0,0,0,0,0,0,0,50]
[18,7,"زهير",10,10,10,10,10,10,10,10,10,10,10,0,110]
[19,8,"أنس",10,10,10,10,10,10,10,10,10,10,10,10,120]
[20,null,null,null,null,null,null,null,null,null,null,null,null,null,null,0]
[21,null,null,null,null,null,null,null,null,null,null,null,null,null,null,0]
[22,null,null,null,null,null,null,null,null,null,null,null,null,null,null,0]
[23,null,null,null,null,null,null,null,null,null,null,null,null,null,null,0]
[24,null,null,null,null,null,null,null,null,null,null,null,null,null,null,0]
[25,null,null,null,null,null,null,null,null,null,null,null,null,null,null,0]
[26,null,null,null,null,null,null,null,null,null,null,null,null,null,null,0]
[27,null,null,null,null,null,null,null,null,null,null,null,null,null,null,0]
[28,null,null,null,null,null,null,null,null,null,null,null,null,null,null,0]
[29,null,null,null,null,null,null,null,null,null,null,null,null,null,null,0]
[30,null,null,null,null,null,null,null,null,null,null,null,null,null,null,0]
[31,null,null,null,null,null,null,null,null,null,null,null,null,null,null,0]
[32,null,null,null,null,null,null,null,null,null,null,null,null,null,null,0]
[33,null,null,null,null,null,null,null,null,null,null,null,null,null,null,0]
[34,null,null,null,null,null,null,null,null,null,null,null,null,null,null,0]
[35,null,null,null,null,null,null,null,null,null,null,null,null,null,null,0]
[36,null,null,null,null,null,null,null,null,null,null,null,null,null,null,0]
[37,null,null,null,null,null,null,null,null,null,null,null,null,null,null,0]
[38,null,null,null,null,null,null,null,null,null,null,null,null,null,null,0]
[39,null,null,null,null,null,null,null,null,null,null,null,null,null,null,0]
[40,null,null,null,null,null,null,null,null,null,null,null,null,null,null,0]
[41,null,null,null,null,null,null,null,null,null,null,null,null,null,null,0]
[42,null,null,null,null,null,null,null,null,null,null,null,null,null,null,0]
[43,null,null,null,null,null,null,null,null,null,null,null,null,null,null,0]
[44,null,null,null,null,null,null,null,null,null,null,null,null,null,null,0]
[45,null,null,null,null,null,null,null,null,null,null,null,null,null,null,0]
[46,null,null,null,null,null,null,null,null,null,null,null,null,null,null,0]
[47,null,null,null,null,null,null,null,null,null,null,null,null,null,null,0]
[48,null,null,null,null,null,null,null,null,null,null,null,null,null,null,0]
[49,null,null,null,null,null,null,null,null,null,null,null,null,null,null,0]
[50,null,null,null,null,null,null,null,null,null,null,null,null,null,null,0]
[51,null,null,null,null,null,null,null,null,null,null,null,null,null,null,0]
[52,null,null,null,null,null,null,null,null,null,null,null,null,null,null,0]
[53,null,null,null,null,null,null,null,null,null,null,null,null,null,null,0]
[54,null,null,null,null,null,null,null,null,null,null,null,null,null,null,0]
[55,null,null,null,null,null,null,null,null,null,null,null,null,null,null,0]
[56,null,null,null,null,null,null,null,null,null,null,null,null,null,null,0]
[57,null,null,null,null,null,null,null,null,null,null,null,null,null,null,0]
[58,null,null,null,null,null,null,null,null,null,null,null,null,null,null,0]
[59,null,null,null,null,null,null,null,null,null,null,null,null,null,null,0]
[60,null,null,null,null,null,null,null,null,null,null,null,null,null,null,0]
[61,null,null,null,null,null,null,null,null,null,null,null,null,null,null,0]
[62,null,null,null,null,null,null,null,null,null,null,null,null,null,null,0]
[63,null,null,null,null,null,null,null,null,null,null,null,null,null,null,0]
[64,null,null,null,null,null,null,null,null,null,null,null,null,null,null,0]
[65,null,null,null,null,null,null,null,null,null,null,null,null,null,null,{"$f":"SUM(D66:O66)","v":0}]
[66,null,null,null,null,null,null,null,null,null,null,null,null,null,null,0]
[67,null,null,null,null,null,null,null,null,null,null,null,null,null,null,0]
[68,null,null,null,null,null,null,null,null,null,null,null,null,null,null,0]
[69,null,null,null,null,null,null,null,null,null,null,null,null,null,null,0]
[70,null,null,null,null,null,null,null,null,null,null,null,null,null,null,0]
[71,null,null,null,null,null,null,null,null,null,null,null,null,null,null,0]
[72,null,null,null,null,null,null,null,null,null,null,null,null,null,null,0]
[73,null,null,null,null,null,null,null,null,null,null,null,null,null,null,0]
[74,null,null,null,null,null,null,null,null,null,null,null,null,null,null,0]
[75,null,null,null,null,null,null,null,null,null,null,null,null,null,null,0]
[76,null,null,null,null,null,null,null,null,null,null,null,null,null,null,0]
[77,null,null,null,null,null,null,null,null,null,null,null,null,null,null,0]
[78,null,null,null,null,null,null,null,null,null,null,null,null,null,null,0]
[79,null,null,null,null,null,null,null,null,null,null,null,null,null,null,0]
[80,null,null,null,null,null,null,null,null,null,null,null,null,null,null,0]
[81,null,null,null,null,null,null,null,null,null,null,null,null,null,null,0]
[82,null,null,null,null,null,null,null,null,null,null,null,null,null,null,0]
[83,null,null,null,null,null,null,null,null,null,null,null,null,null,null,0]
[84,null,null,null,null,null,null,null,null,null,null,null,null,null,null,0]
[85,null,null,null,null,null,null,null,null,null,null,null,null,null,null,0]
[86,null,null,null,null,null,null,null,null,null,null,null,null,null,null,0]
[87,null,null,null,null,null,null,null,null,null,null,null,null,null,null,0]
[88,null,null,null,null,null,null,null,null,null,null,null,null,null,null,0]
[89,null,null,null,null,null,null,null,null,null,null,null,null,null,null,0]
[90,null,null,null,null,null,null,null,null,null,null,null,null,null,null,0]
[91,null,null,null,null,null,null,null,null,null,null,null,null,null,null,0]
[92,null,null,null,null,null,null,null,null,null,null,null,null,null,null,0]
[93,null,null,null,null,null,null,null,null,null,null,null,null,null,null,0]
[94,null,null,null,null,null,null,null,null,null,null,null,null,null,null,0]
[95,null,null,null,null,null,null,null,null,null,null,null,null,null,null,0]
[96,null,null,null,null,null,null,null,null,null,null,null,null,null,null,0]
[97,null,null,null,null,null,null,null,null,null,null,null,null,null,null,0]
[98,null,null,null,null,null,null,null,null,null,null,null,null,null,null,0]
[99,null,null,null,null,null,null,null,null,null,null,null,null,null,null,0]
[100,null,null,null,null,null,null,null,null,null,null,null,null,null,null,0]
[101,null,null,null,null,null,null,null,null,null,null,null,null,null,null,0]
[102,null,null,null,null,null,null,null,null,null,null,null,null,null,null,0]
[103,null,null,null,null,null,null,null,null,null,null,null,null,null,null,0]
[104,null,null,null,null,null,null,null,null,null,null,null,null,null,null,0]
[105,null,null,null,null,null,null,null,null,null,null,null,null,null,null,0]
[106,null,null,null,null,null,null,null,null,null,null,null,null,null,null,0]
[107,null,null,null,null,null,null,null,null,null,null,null,null,null,null,0]
[108,null,null,null,null,null,null,null,null,null,null,null,null,null,null,0]
[109,null,null,null,null,null,null,null,null,null,null,null,null,null,null,0]
[110,null,null,null,null,null,null,null,null,null,null,null,null,null,null,0]
[111,null,null,null,null,null,null,null,null,null,null,null,null,null,null,0]
[112,null,null,null,null,null,null,null,null,null,null,null,null,null,null,0]
[113,null,null,null,null,null,null,null,null,null,null,null,null,null,null,0]
[114,null,null,null,null,null,null,null,null,null,null,null,null,null,null,0]
[115,null,null,null,null,null,null,null,null,null,null,null,null,null,null,0]
[116,null,null,null,null,null,null,null,null,null,null,null,null,null,null,0]
[117,null,null,null,null,null,null,null,null,null,null,null,null,null,null,0]
[118,null,null,null,null,null,null,null,null,null,null,null,null,null,null,0]
[119,null,null,null,null,null,null,null,null,null,null,null,null,null,null,0]
[120,null,null,null,null,null,null,null,null,null,null,null,null,null,null,0]
[121,null,null,null,null,null,null,null,null,null,null,null,null,null,null,0]
[122,null,null,null,null,null,null,null,null,null,null,null,null,null,null,0]
[123,null,null,null,null,null,null,null,null,null,null,null,null,null,null,0]
[124,null,null,null,null,null,null,null,null,null,null,null,null,null,null,0]
[125,null,null,null,null,null,null,null,null,null,null,null,null,null,null,0]
[126,null,null,null,null,null,null,null,null,null,null,null,null,null,null,0]
[127,null,null,null,null,null,null,null,null,null,null,null,null,null,null,0]
[128,null,null,null,null,null,null,null,null,null,null,null,null,null,null,0]
[129,null,null,null,null,null,null,null,null,null,null,null,null,null,null,{"$f":"SUM(D130:O130)","v":0}]
[130,null,null,null,null,null,null,null,null,null,null,null,null,null,null,0]
[131,null,null,null,null,null,null,null,null,null,null,null,null,null,null,0]
[132,null,null,null,null,null,null,null,null,null,null,null,null,null,null,0]
[133,null,null,null,null,null,null,null,null,null,null,null,null,null,null,0]
[134,null,null,null,null,null,null,null,null,null,null,null,null,null,null,0]
[135,null,null,null,null,null,null,null,null,null,null,null,null,null,null,0]
[136,null,null,null,null,null,null,null,null,null,null,null,null,null,null,0]
[137,null,null,null,null,null,null,null,null,null,null,null,null,null,null,0]
[138,null,null,null,null,null,null,null,null,null,null,null,null,null,null,0]
[139,null,null,null,null,null,null,null,null,null,null,null,null,null,null,0]
[140,null,null,null,null,null,null,null,null,null,null,null,null,null,null,0]
[141,null,null,null,null,null,null,null,null,null,null,null,null,null,null,0]
[142,null,null,null,null,null,null,null,null,null,null,null,null,null,null,0]
[143,null,null,null,null,null,null,null,null,null,null,null,null,null,null,0]
[144,null,null,null,null,null,null,null,null,null,null,null,null,null,null,0]
[145,null,null,null,null,null,null,null,null,null,null,null,null,null,null,0]
[146,null,null,null,null,null,null,null,null,null,null,null,null,null,null,0]
[147,null,null,null,null,null,null,null,null,null,null,null,null,null,null,0]
[148,null,null,null,null,null,null,null,null,null,null,null,null,null,null,0]
[149,null,null,null,null,null,null,null,null,null,null,null,null,null,null,0]
[150,null,null,null,null,null,null,null,null,null,null,null,null,null,null,0]
[151,null,null,null,null,null,null,null,null,null,null,null,null,null,null,0]
[152,null,null,null,null,null,null,null,null,null,null,null,null,null,null,0]
[153,null,null,null,null,null,null,null,null,null,null,null,null,null,null,0]
[154,null,null,null,null,null,null,null,null,null,null,null,null,null,null,0]
[155,null,null,null,null,null,null,null,null,null,null,null,null,null,null,0]
[156,null,null,null,null,null,null,null,null,null,null,null,null,null,null,0]
[157,null,null,null,null,null,null,null,null,null,null,null,null,null,null,0]
[158,null,null,null,null,null,null,null,null,null,null,null,null,null,null,0]
[159,null,null,null,null,null,null,null,null,null,null,null,null,null,null,0]
[160,null,null,null,null,null,null,null,null,null,null,null,null,null,null,0]
[161,null,null,null,null,null,null,null,null,null,null,null,null,null,null,0]
[162,null,null,null,null,null,null,null,null,null,null,null,null,null,null,0]
[163,null,null,null,null,null,null,null,null,null,null,null,null,null,null,0]
[164,null,null,null,null,null,null,null,null,null,null,null,null,null,null,0]
[165,null,null,null,null,null,null,null,null,null,null,null,null,null,null,0]
[166,null,null,null,null,null,null,null,null,null,null,null,null,null,null,0]
[167,null,null,null,null,null,null,null,null,null,null,null,null,null,null,0]
[168,null,null,null,null,null,null,null,null,null,null,null,null,null,null,0]
[169,null,null,null,null,null,null,null,null,null,null,null,null,null,null,0]
[170,null,null,null,null,null,null,null,null,null,null,null,null,null,null,0]
[171,null,null,null,null,null,null,null,null,null,null,null,null,null,null,0]
[172,null,null,null,null,null,null,null,null,null,null,null,null,null,null,0]
[173,null,null,null,null,null,null,null,null,null,null,null,null,null,null,0]
[174,null,null,null,null,null,null,null,null,null,null,null,null,null,null,0]
[175,null,null,null,null,null,null,null,null,null,null,null,null,null,null,0]
[176,null,null,null,null,null,null,null,null,null,null,null,null,null,null,0]
[177,null,null,null,null,null,null,null,null,null,null,null,null,null,null,0]
[178,null,null,null,null,null,null,null,null,null,null,null,null,null,null,0]
[179,null,null,null,null,null,null,null,null,null,null,null,null,null,null,0]
[180,null,null,null,null,null,null,null,null,null,null,null,null,null,null,0]
[181,null,null,null,null,null,null,null,null,null,null,null,null,null,null,0]
[182,null,null,null,null,null,null,null,null,null,null,null,null,null,null,0]
[183,null,null,null,null,null,null,null,null,null,null,null,null,null,null,0]
[184,null,null,null,null,null,null,null,null,null,null,null,null,null,null,0]
[185,null,null,null,null,null,null,null,null,null,null,null,null,null,null,0]
[186,null,null,null,null,null,null,null,null,null,null,null,null,null,null,0]
[187,null,null,null,null,null,null,null,null,null,null,null,null,null,null,0]
[188,null,null,null,null,null,null,null,null,null,null,null,null,null,null,0]
[189,null,null,null,null,null,null,null,null,null,null,null,null,null,null,0]
[190,null,null,null,null,null,null,null,null,null,null,null,null,null,null,0]
[191,null,null,null,null,null,null,null,null,null,null,null,null,null,null,0]
[192,null,null,null,null,null,null,null,null,null,null,null,null,null,null,0]
[193,null,null,null,null,null,null,null,null,null,null,null,null,null,null,{"$f":"SUM(D194:O194)","v":0}]
[194,null,null,null,null,null,null,null,null,null,null,null,null,null,null,0]
[195,null,null,null,null,null,null,null,null,null,null,null,null,null,null,0]
[196,null,null,null,null,null,null,null,null,null,null,null,null,null,null,0]
[197,null,null,null,null,null,null,null,null,null,null,null,null,null,null,0]
[198,null,null,null,null,null,null,null,null,null,null,null,null,null,null,0]
[199,null,null,null,null,null,null,null,null,null,null,null,null,null,null,0]
[200,null,null,null,null,null,null,null,null,null,null,null,null,null,null,0]
[201,null,null,null,null,null,null,null,null,null,null,null,null,null,null,0]
[202,null,null,null,null,null,null,null,null,null,null,null,null,null,null,0]
[203,null,null,null,null,null,null,null,null,null,null,null,null,null,null,0]
[204,null,null,null,null,null,null,null,null,null,null,null,null,null,null,0]
[205,null,null,null,null,null,null,null,null,null,null,null,null,null,null,0]
[206,null,null,null,null,null,null,null,null,null,null,null,null,null,null,0]
[207,null,null,null,null,null,null,null,null,null,null,null,null,null,null,0]
[208,null,null,null,null,null,null,null,null,null,null,null,null,null,null,0]
[209,null,null,null,null,null,null,null,null,null,null,null,null,null,null,0]
[210,null,null,null,null,null,null,null,null,null,null,null,null,null,null,0]
[211,null,null,null,null,null,null,null,null,null,null,null,null,null,null,0]
[212,null,null,null,null,null,null,null,null,null,null,null,null,null,null,0]
[213,null,null,null,null,null,null,null,null,null,null,null,null,null,null,0]
[214,null,null,null,null,null,null,null,null,null,null,null,null,null,null,0]
[215,null,null,null,null,null,null,null,null,null,null,null,null,null,null,0]
[216,null,null,null,null,null,null,null,null,null,null,null,null,null,null,0]
[217,null,null,null,null,null,null,null,null,null,null,null,null,null,null,0]
[218,null,null,null,null,null,null,null,null,null,null,null,null,null,null,0]
[219,null,null,null,null,null,null,null,null,null,null,null,null,null,null,0]
[220,null,null,null,null,null,null,null,null,null,null,null,null,null,null,0]
[221,null,null,null,null,null,null,null,null,null,null,null,null,null,null,0]
[222,null,null,null,null,null,null,null,null,null,null,null,null,null,null,0]
[223,null,null,null,null,null,null,null,null,null,null,null,null,null,null,0]
[224,null,null,null,null,null,null,null,null,null,null,null,null,null,null,0]
[225,null,null,null,null,null,null,null,null,null,null,null,null,null,null,0]
[226,null,null,null,null,null,null,null,null,null,null,null,null,null,null,0]
[227,null,null,null,null,null,null,null,null,null,null,null,null,null,null,0]
[228,null,null,null,null,null,null,null,null,null,null,null,null,null,null,0]
[229,null,null,null,null,null,null,null,null,null,null,null,null,null,null,0]
[230,null,null,null,null,null,null,null,null,null,null,null,null,null,null,0]
[231,null,null,null,null,null,null,null,null,null,null,null,null,null,null,0]
[232,null,null,null,null,null,null,null,null,null,null,null,null,null,null,0]
[233,null,null,null,null,null,null,null,null,null,null,null,null,null,null,0]
[234,null,null,null,null,null,null,null,null,null,null,null,null,null,null,0]
[235,null,null,null,null,null,null,null,null,null,null,null,null,null,null,0]
[236,null,null,null,null,null,null,null,null,null,null,null,null,null,null,0]
[237,null,null,null,null,null,null,null,null,null,null,null,null,null,null,0]
[238,null,null,null,null,null,null,null,null,null,null,null,null,null,null,0]
[239,null,null,null,null,null,null,null,null,null,null,null,null,null,null,0]
[240,null,null,null,null,null,null,null,null,null,null,null,null,null,null,0]
[241,null,null,null,null,null,null,null,null,null,null,null,null,null,null,0]
[242,null,null,null,null,null,null,null,null,null,null,null,null,null,null,0]
[243,null,null,null,null,null,null,null,null,null,null,null,null,null,null,0]
[244,null,null,null,null,null,null,null,null,null,null,null,null,null,null,0]
[245,null,null,null,null,null,null,null,null,null,null,null,null,null,null,0]
[246,null,null,null,null,null,null,null,null,null,null,null,null,null,null,0]
[247,null,null,null,null,null,null,null,null,null,null,null,null,null,null,0]
[248,null,null,null,null,null,null,null,null,null,null,null,null,null,null,0]
[249,null,null,null,null,null,null,null,null,null,null,null,null,null,null,0]
[250,null,null,null,null,null,null,null,null,null,null,null,null,null,null,0]
[251,null,null,null,null,null,null,null,null,null,null,null,null,null,null,0]
[252,null,null,null,null,null,null,null,null,null,null,null,null,null,null,0]
[253,null,null,null,null,null,null,null,null,null,null,null,null,null,null,0]
[254,null,null,null,null,null,null,null,null,null,null,null,null,null,null,0]
[255,null,null,null,null,null,null,null,null,null,null,null,null,null,null,0]
[256,null,null,null,null,null,null,null,null,null,null,null,null,null,null,0]
[257,null,null,null,null,null,null,null,null,null,null,null,null,null,null,{"$f":"SUM(D258:O258)","v":0}]
[258,null,null,null,null,null,null,null,null,null,null,null,null,null,null,0]
[259,null,null,null,null,null,null,null,null,null,null,null,null,null,null,0]
[260,null,null,null,null,null,null,null,null,null,null,null,null,null,null,0]
[261,null,null,null,null,null,null,null,null,null,null,null,null,null,null,0]
[262,null,null,null,null,null,null,null,null,null,null,null,null,null,null,0]
[263,null,null,null,null,null,null,null,null,null,null,null,null,null,null,0]
[264,null,null,null,null,null,null,null,null,null,null,null,null,null,null,0]
[265,null,null,null,null,null,null,null,null,null,null,null,null,null,null,0]
[266,null,null,null,null,null,null,null,null,null,null,null,null,null,null,0]
[267,null,null,null,null,null,null,null,null,null,null,null,null,null,null,0]
[268,null,null,null,null,null,null,null,null,null,null,null,null,null,null,0]
[269,null,null,null,null,null,null,null,null,null,null,null,null,null,null,0]
[270,null,null,null,null,null,null,null,null,null,null,null,null,null,null,0]
[271,null,null,null,null,null,null,null,null,null,null,null,null,null,null,0]
[272,null,null,null,null,null,null,null,null,null,null,null,null,null,null,0]
[273,null,null,null,null,null,null,null,null,null,null,null,null,null,null,0]
[274,null,null,null,null,null,null,null,null,null,null,null,null,null,null,0]
[275,null,null,null,null,null,null,null,null,null,null,null,null,null,null,0]
[276,null,null,null,null,null,null,null,null,null,null,null,null,null,null,0]
[277,null,null,null,null,null,null,null,null,null,null,null,null,null,null,0]
[278,null,null,null,null,null,null,null,null,null,null,null,null,null,null,0]
[279,null,null,null,null,null,null,null,null,null,null,null,null,null,null,0]
[280,null,null,null,null,null,null,null,null,null,null,null,null,null,null,0]
[281,null,null,null,null,null,null,null,null,null,null,null,null,null,null,0]
[282,null,null,null,null,null,null,null,null,null,null,null,null,null,null,0]
[283,null,null,null,null,null,null,null,null,null,null,null,null,null,null,0]
[284,null,null,null,null,null,null,null,null,null,null,null,null,null,null,0]
[285,null,null,null,null,null,null,null,null,null,null,null,null,null,null,0]
[286,null,null,null,null,null,null,null,null,null,null,null,null,null,null,0]
[287,null,null,null,null,null,null,null,null,null,null,null,null,null,null,0]
[288,null,null,null,null,null,null,null,null,null,null,null,null,null,null,0]
[289,null,null,null,null,null,null,null,null,null,null,null,null,null,null,0]
[290,null,null,null,null,null,null,null,null,null,null,null,null,null,null,0]
[291,null,null,null,null,null,null,null,null,null,null,null,null,null,null,0]
[292,null,null,null,null,null,null,null,null,null,null,null,null,null,null,0]
[293,null,null,null,null,null,null,null,null,null,null,null,null,null,null,0]
[294,null,null,null,null,null,null,null,null,null,null,null,null,null,null,0]
[295,null,null,null,null,null,null,null,null,null,null,null,null,null,null,0]
[296,null,null,null,null,null,null,null,null,null,null,null,null,null,null,0]
[297,null,null,null,null,null,null,null,null,null,null,null,null,null,null,0]
[298,null,null,null,null,null,null,null,null,null,null,null,null,null,null,0]
[299,null,null,null,null,null,null,null,null,null,null,null,null,null,null,0]
[300,null,null,null,null,null,null,null,null,null,null,null,null,null,null,0]
[301,null,null,null,null,null,null,null,null,null,null,null,null,null,null,0]
[302,null,null,null,null,null,null,null,null,null,null,null,null,null,null,0]
[303,null,null,null,null,null,null,null,null,null,null,null,null,null,null,0]
[304,null,null,null,null,null,null,null,null,null,null,null,null,null,null,0]
[305,null,null,null,null,null,null,null,null,null,null,null,null,null,null,0]
[306,null,null,null,null,null,null,null,null,null,null,null,null,null,null,0]
[307,null,null,null,null,null,null,null,null,null,null,null,null,null,null,0]
[308,null,null,null,null,null,null,null,null,null,null,null,null,null,null,0]
[309,null,null,null,null,null,null,null,null,null,null,null,null,null,null,0]
[310,null,null,null,null,null,null,null,null,null,null,null,null,null,null,0]
[311,null,null,null,null,null,null,null,null,null,null,null,null,null,null,0]
[312,null,null,null,null,null,null,null,null,null,null,null,null,null,null,0]
[313,null,null,null,null,null,null,null,null,null,null,null,null,null,null,0]
[314,null,null,null,null,null,null,null,null,null,null,null,null,null,null,0]
[315,null,null,null,null,null,null,null,null,null,null,null,null,null,null,0]
[316,null,null,null,null,null,null,null,null,null,null,null,null,null,null,0]
[317,null,null,null,null,null,null,null,null,null,null,null,null,null,null,0]
[318,null,null,null,null,null,null,null,null,null,null,null,null,null,null,0]
[319,null,null,null,null,null,null,null,null,null,null,null,null,null,null,0]
[320,null,null,null,null,null,null,null,null,null,null,null,null,null,null,0]
[321,null,null,null,null,null,null,null,null,null,null,null,null,null,null,{"$f":"SUM(D322:O322)","v":0}]
[322,null,null,null,null,null,null,null,null,null,null,null,null,null,null,0]
[323,null,null,null,null,null,null,null,null,null,null,null,null,null,null,0]
[324,null,null,null,null,null,null,null,null,null,null,null,null,null,null,0]
[325,null,null,null,null,null,null,null,null,null,null,null,null,null,null,0]
[326,null,null,null,null,null,null,null,null,null,null,null,null,null,null,0]
[327,null,null,null,null,null,null,null,null,null,null,null,null,null,null,0]
[328,null,null,null,null,null,null,null,null,null,null,null,null,null,null,0]
[329,null,null,null,null,null,null,null,null,null,null,null,null,null,null,0]
[330,null,null,null,null,null,null,null,null,null,null,null,null,null,null,0]
[331,null,null,null,null,null,null,null,null,null,null,null,null,null,null,0]
[332,null,null,null,null,null,null,null,null,null,null,null,null,null,null,0]
[333,null,null,null,null,null,null,null,null,null,null,null,null,null,null,0]
[334,null,null,null,null,null,null,null,null,null,null,null,null,null,null,0]
[335,null,null,null,null,null,null,null,null,null,null,null,null,null,null,0]
[336,null,null,null,null,null,null,null,null,null,null,null,null,null,null,0]
[337,null,null,null,null,null,null,null,null,null,null,null,null,null,null,0]
[338,null,null,null,null,null,null,null,null,null,null,null,null,null,null,0]
[339,null,null,null,null,null,null,null,null,null,null,null,null,null,null,0]
[340,null,null,null,null,null,null,null,null,null,null,null,null,null,null,0]
[341,null,null,null,null,null,null,null,null,null,null,null,null,null,null,0]
[342,null,null,null,null,null,null,null,null,null,null,null,null,null,null,0]
[343,null,null,null,null,null,null,null,null,null,null,null,null,null,null,0]
[344,null,null,null,null,null,null,null,null,null,null,null,null,null,null,0]
[345,null,null,null,null,null,null,null,null,null,null,null,null,null,null,0]
[346,null,null,null,null,null,null,null,null,null,null,null,null,null,null,0]
[347,null,null,null,null,null,null,null,null,null,null,null,null,null,null,0]
[348,null,null,null,null,null,null,null,null,null,null,null,null,null,null,0]
[349,null,null,null,null,null,null,null,null,null,null,null,null,null,null,0]
[350,null,null,null,null,null,null,null,null,null,null,null,null,null,null,0]
[351,null,null,null,null,null,null,null,null,null,null,null,null,null,null,0]
[352,null,null,null,null,null,null,null,null,null,null,null,null,null,null,0]
[353,null,null,null,null,null,null,null,null,null,null,null,null,null,null,0]
[354,null,null,null,null,null,null,null,null,null,null,null,null,null,null,0]
[355,null,null,null,null,null,null,null,null,null,null,null,null,null,null,0]
[356,null,null,null,null,null,null,null,null,null,null,null,null,null,null,0]
[357,null,null,null,null,null,null,null,null,null,null,null,null,null,null,0]
[358,null,null,null,null,null,null,null,null,null,null,null,null,null,null,0]
[359,null,null,null,null,null,null,null,null,null,null,null,null,null,null,0]
[360,null,null,null,null,null,null,null,null,null,null,null,null,null,null,0]
[361,null,null,null,null,null,null,null,null,null,null,null,null,null,null,0]
[362,null,null,null,null,null,null,null,null,null,null,null,null,null,null,0]
[363,null,null,null,null,null,null,null,null,null,null,null,null,null,null,0]
[364,null,null,null,null,null,null,null,null,null,null,null,null,null,null,0]
[365,null,null,null,null,null,null,null,null,null,null,null,null,null,null,0]
[366,null,null,null,null,null,null,null,null,null,null,null,null,null,null,0]
[367,null,null,null,null,null,null,null,null,null,null,null,null,null,null,0]
[368,null,null,null,null,null,null,null,null,null,null,null,null,null,null,0]
[369,null,null,null,null,null,null,null,null,null,null,null,null,null,null,0]
[370,null,null,null,null,null,null,null,null,null,null,null,null,null,null,0]
[371,null,null,null,null,null,null,null,null,null,null,null,null,null,null,0]
[372,null,null,null,null,null,null,null,null,null,null,null,null,null,null,0]
[373,null,null,null,null,null,null,null,null,null,null,null,null,null,null,0]
[374,null,null,null,null,null,null,null,null,null,null,null,null,null,null,0]
[375,null,null,null,null,null,null,null,null,null,null,null,null,null,null,0]
[376,null,null,null,null,null,null,null,null,null,null,null,null,null,null,0]
[377,null,null,null,null,null,null,null,null,null,null,null,null,null,null,0]
[378,null,null,null,null,null,null,null,null,null,null,null,null,null,null,0]
[379,null,null,null,null,null,null,null,null,null,null,null,null,null,null,0]
[380,null,null,null,null,null,null,null,null,null,null,null,null,null,null,0]
[381,null,null,null,null,null,null,null,null,null,null,null,null,null,null,0]
[382,null,null,null,null,null,null,null,null,null,null,null,null,null,null,0]
[383,null,null,null,null,null,null,null,null,null,null,null,null,null,null,0]
[384,null,null,null,null,null,null,null,null,null,null,null,null,null,null,0]
[385,null,null,null,null,null,null,null,null,null,null,null,null,null,null,{"$f":"SUM(D386:O386)","v":0}]
[386,null,null,null,null,null,null,null,null,null,null,null,null,null,null,0]
[387,null,null,null,null,null,null,null,null,null,null,null,null,null,null,0]
[388,null,null,null,null,null,null,null,null,null,null,null,null,null,null,0]
[389,null,null,null,null,null,null,null,null,null,null,null,null,null,null,0]
[390,null,null,null,null,null,null,null,null,null,null,null,null,null,null,0]
[391,null,null,null,null,null,null,null,null,null,null,null,null,null,null,0]
[392,null,null,null,null,null,null,null,null,null,null,null,null,null,null,0]
[393,null,null,null,null,null,null,null,null,null,null,null,null,null,null,0]
[394,null,null,null,null,null,null,null,null,null,null,null,null,null,null,0]
[395,null,null,null,null,null,null,null,null,null,null,null,null,null,null,0]
[396,null,null,null,null,null,null,null,null,null,null,null,null,null,null,0]
[397,null,null,null,null,null,null,null,null,null,null,null,null,null,null,0]
[398,null,null,null,null,null,null,null,null,null,null,null,null,null,null,0]
[399,null,null,null,null,null,null,null,null,null,null,null,null,null,null,0]
[400,null,null,null,null,null,null,null,null,null,null,null,null,null,null,0]
[401,null,null,null,null,null,null,null,null,null,null,null,null,null,null,0]
[402,null,null,null,null,null,null,null,null,null,null,null,null,null,null,0]
[403,null,null,null,null,null,null,null,null,null,null,null,null,null,null,0]
[404,null,null,null,null,null,null,null,null,null,null,null,null,null,null,0]
[405,null,null,null,null,null,null,null,null,null,null,null,null,null,null,0]
[406,null,null,null,null,null,null,null,null,null,null,null,null,null,null,0]
[407,null,null,null,null,null,null,null,null,null,null,null,null,null,null,0]
[408,null,null,null,null,null,null,null,null,null,null,null,null,null,null,0]
[409,null,null,null,null,null,null,null,null,null,null,null,null,null,null,0]
[410,null,null,null,null,null,null,null,null,null,null,null,null,null,null,0]
[411,null,null,null,null,null,null,null,null,null,null,null,null,null,null,0]
[412,null,null,null,null,null,null,null,null,null,null,null,null,null,null,0]
[413,null,null,null,null,null,null,null,null,null,null,null,null,null,null,0]
[414,null,null,null,null,null,null,null,null,null,null,null,null,null,null,0]
[415,null,null,null,null,null,null,null,null,null,null,null,null,null,null,0]
[416,null,null,null,null,null,null,null,null,null,null,null,null,null,null,0]
[417,null,null,null,null,null,null,null,null,null,null,null,null,null,null,0]
[418,null,null,null,null,null,null,null,null,null,null,null,null,null,null,0]
[419,null,null,null,null,null,null,null,null,null,null,null,null,null,null,0]
[420,null,null,null,null,null,null,null,null,null,null,null,null,null,null,0]
[421,null,null,null,null,null,null,null,null,null,null,null,null,null,null,0]
[422,null,null,null,null,null,null,null,null,null,null,null,null,null,null,0]
[423,null,null,null,null,null,null,null,null,null,null,null,null,null,null,0]
[424,null,null,null,null,null,null,null,null,null,null,null,null,null,null,0]
[425,null,null,null,null,null,null,null,null,null,null,null,null,null,null,0]
[426,null,null,null,null,null,null,null,null,null,null,null,null,null,null,0]
[427,null,null,null,null,null,null,null,null,null,null,null,null,null,null,0]
[428,null,null,null,null,null,null,null,null,null,null,null,null,null,null,0]
[429,null,null,null,null,null,null,null,null,null,null,null,null,null,null,0]
[430,null,null,null,null,null,null,null,null,null,null,null,null,null,null,0]
[431,null,null,null,null,null,null,null,null,null,null,null,null,null,null,0]
[432,null,null,null,null,null,null,null,null,null,null,null,null,null,null,0]
[433,null,null,null,null,null,null,null,null,null,null,null,null,null,null,0]
[434,null,null,null,null,null,null,null,null,null,null,null,null,null,null,0]
[435,null,null,null,null,null,null,null,null,null,null,null,null,null,null,0]
[436,null,null,null,null,null,null,null,null,null,null,null,null,null,null,0]
[437,null,null,null,null,null,null,null,null,null,null,null,null,null,null,0]
[438,null,null,null,null,null,null,null,null,null,null,null,null,null,null,0]
[439,null,null,null,null,null,null,null,null,null,null,null,null,null,null,0]
[440,null,null,null,null,null,null,null,null,null,null,null,null,null,null,0]
[441,null,null,null,null,null,null,null,null,null,null,null,null,null,null,0]
[442,null,null,null,null,null,null,null,null,null,null,null,null,null,null,0]
[443,null,null,null,null,null,null,null,null,null,null,null,null,null,null,0]
[444,null,null,null,null,null,null,null,null,null,null,null,null,null,null,0]
[445,null,null,null,null,null,null,null,null,null,null,null,null,null,null,0]
[446,null,null,null,null,null,null,null,null,null,null,null,null,null,null,0]
[447,null,null,null,null,null,null,null,null,null,null,null,null,null,null,0]
[448,null,null,null,null,null,null,null,null,null,null,null,null,null,null,0]
[449,null,null,null,null,null,null,null,null,null,null,null,null,null,null,{"$f":"SUM(D450:O450)","v":0}]
[450,null,null,null,null,null,null,null,null,null,null,null,null,null,null,0]
[451,null,null,null,null,null,null,null,null,null,null,null,null,null,null,0]
[452,null,null,null,null,null,null,null,null,null,null,null,null,null,null,0]
[453,null,null,null,null,null,null,null,null,null,null,null,null,null,null,0]
[454,null,null,null,null,null,null,null,null,null,null,null,null,null,null,0]
[455,null,null,null,null,null,null,null,null,null,null,null,null,null,null,0]
[456,null,null,null,null,null,null,null,null,null,null,null,null,null,null,0]
[457,null,null,null,null,null,null,null,null,null,null,null,null,null,null,0]
[458,null,null,null,null,null,null,null,null,null,null,null,null,null,null,0]
[459,null,null,null,null,null,null,null,null,null,null,null,null,null,null,0]
[460,null,null,null,null,null,null,null,null,null,null,null,null,null,null,0]
[461,null,null,null,null,null,null,null,null,null,null,null,null,null,null,0]
[462,null,null,null,null,null,null,null,null,null,null,null,null,null,null,0]
[463,null,null,null,null,null,null,null,null,null,null,null,null,null,null,0]
[464,null,null,null,null,null,null,null,null,null,null,null,null,null,null,0]
[465,null,null,null,null,null,null,null,null,null,null,null,null,null,null,0]
[466,null,null,null,null,null,null,null,null,null,null,null,null,null,null,0]
[467,null,null,null,null,null,null,null,null,null,null,null,null,null,null,0]
[468,null,null,null,null,null,null,null,null,null,null,null,null,null,null,0]
[469,null,null,null,null,null,null,null,null,null,null,null,null,null,null,0]
[470,null,null,null,null,null,null,null,null,null,null,null,null,null,null,0]
[471,null,null,null,null,null,null,null,null,null,null,null,null,null,null,0]
[472,null,null,null,null,null,null,null,null,null,null,null,null,null,null,0]
[473,null,null,null,null,null,null,null,null,null,null,null,null,null,null,0]
[474,null,null,null,null,null,null,null,null,null,null,null,null,null,null,0]
[475,null,null,null,null,null,null,null,null,null,null,null,null,null,null,0]
[476,null,null,null,null,null,null,null,null,null,null,null,null,null,null,0]
[477,null,null,null,null,null,null,null,null,null,null,null,null,null,null,0]
[478,null,null,null,null,null,null,null,null,null,null,null,null,null,null,0]
[479,null,null,null,null,null,null,null,null,null,null,null,null,null,null,0]
[480,null,null,null,null,null,null,null,null,null,null,null,null,null,null,0]
[481,null,null,null,null,null,null,null,null,null,null,null,null,null,null,0]
[482,null,null,null,null,null,null,null,null,null,null,null,null,null,null,0]
[483,null,null,null,null,null,null,null,null,null,null,null,null,null,null,0]
[484,null,null,null,null,null,null,null,null,null,null,null,null,null,null,0]
[485,null,null,null,null,null,null,null,null,null,null,null,null,null,null,0]
[486,null,null,null,null,null,null,null,null,null,null,null,null,null,null,0]
[487,null,null,null,null,null,null,null,null,null,null,null,null,null,null,0]
[488,null,null,null,null,null,null,null,null,null,null,null,null,null,null,0]
[489,null,null,null,null,null,null,null,null,null,null,null,null,null,null,0]
[490,null,null,null,null,null,null,null,null,null,null,null,null,null,null,0]
[491,null,null,null,null,null,null,null,null,null,null,null,null,null,null,0]
[492,null,null,null,null,null,null,null,null,null,null,null,null,null,null,0]
[493,null,null,null,null,null,null,null,null,null,null,null,null,null,null,0]
[494,null,null,null,null,null,null,null,null,null,null,null,null,null,null,0]
[495,null,null,null,null,null,null,null,null,null,null,null,null,null,null,0]
[496,null,null,null,null,null,null,null,null,null,null,null,null,null,null,0]
[497,null,null,null,null,null,null,null,null,null,null,null,null,null,null,0]
[498,null,null,null,null,null,null,null,null,null,null,null,null,null,null,0]
[499,null,null,null,null,null,null,null,null,null,null,null,null,null,null,0]
[500,null,null,null,null,null,null,null,null,null,null,null,null,null,null,0]
[501,null,null,null,null,null,null,null,null,null,null,null,null,null,null,0]
[502,null,null,null,null,null,null,null,null,null,null,null,null,null,null,0]
[503,null,null,null,null,null,null,null,null,null,null,null,null,null,null,0]
[504,null,null,null,null,null,null,null,null,null,null,null,null,null,null,0]
[505,null,null,null,null,null,null,null,null,null,null,null,null,null,null,0]
[506,null,null,null,null,null,null,null,null,null,null,null,null,null,null,0]
[507,null,null,null,null,null,null,null,null,null,null,null,null,null,null,0]
[508,null,null,null,null,null,null,null,null,null,null,null,null,null,null,0]
[509,null,null,null,null,null,null,null,null,null,null,null,null,null,null,0]
[510,null,null,null,null,null,null,null,null,null,null,null,null,null,null,0]
[511,null,null,null,null,null,null,null,null,null,null,null,null,null,null,0]
[512,null,null,null,null,null,null,null,null,null,null,null,null,null,null,0]
[513,null,null,null,null,null,null,null,null,null,null,null,null,null,null,{"$f":"SUM(D514:O514)","v":0}]
[514,null,null,null,null,null,null,null,null,null,null,null,null,null,null,0]
[515,null,null,null,null,null,null,null,null,null,null,null,null,null,null,0]
[516,null,null,null,null,null,null,null,null,null,null,null,null,null,null,0]
[517,null,null,null,null,null,null,null,null,null,null,null,null,null,null,0]
[518,null,null,null,null,null,null,null,null,null,null,null,null,null,null,0]
[519,null,null,null,null,null,null,null,null,null,null,null,null,null,null,0]
[520,null,null,null,null,null,null,null,null,null,null,null,null,null,null,0]
[521,null,null,null,null,null,null,null,null,null,null,null,null,null,null,0]
[522,null,null,null,null,null,null,null,null,null,null,null,null,null,null,0]
[523,null,null,null,null,null,null,null,null,null,null,null,null,null,null,0]
[524,null,null,null,null,null,null,null,null,null,null,null,null,null,null,0]
[525,null,null,null,null,null,null,null,null,null,null,null,null,null,null,0]
[526,null,null,null,null,null,null,null,null,null,null,null,null,null,null,0]
[527,null,null,null,null,null,null,null,null,null,null,null,null,null,null,0]
[528,null,null,null,null,null,null,null,null,null,null,null,null,null,null,0]
[529,null,null,null,null,null,null,null,null,null,null,null,null,null,null,0]
[530,null,null,null,null,null,null,null,null,null,null,null,null,null,null,0]
[531,null,null,null,null,null,null,null,null,null,null,null,null,null,null,0]
[532,null,null,null,null,null,null,null,null,null,null,null,null,null,null,0]
[533,null,null,null,null,null,null,null,null,null,null,null,null,null,null,0]
[534,null,null,null,null,null,null,null,null,null,null,null,null,null,null,0]
[535,null,null,null,null,null,null,null,null,null,null,null,null,null,null,0]
[536,null,null,null,null,null,null,null,null,null,null,null,null,null,null,0]
[537,null,null,null,null,null,null,null,null,null,null,null,null,null,null,0]
[538,null,null,null,null,null,null,null,null,null,null,null,null,null,null,0]
[539,null,null,null,null,null,null,null,null,null,null,null,null,null,null,0]
[540,null,null,null,null,null,null,null,null,null,null,null,null,null,null,0]
[541,null,null,null,null,null,null,null,null,null,null,null,null,null,null,0]
[542,null,null,null,null,null,null,null,null,null,null,null,null,null,null,0]
[543,null,null,null,null,null,null,null,null,null,null,null,null,null,null,0]
[544,null,null,null,null,null,null,null,null,null,null,null,null,null,null,0]
[545,null,null,null,null,null,null,null,null,null,null,null,null,null,null,0]
[546,null,null,null,null,null,null,null,null,null,null,null,null,null,null,0]
[547,null,null,null,null,null,null,null,null,null,null,null,null,null,null,0]
[548,null,null,null,null,null,null,null,null,null,null,null,null,null,null,0]
[549,null,null,null,null,null,null,null,null,null,null,null,null,null,null,0]
[550,null,null,null,null,null,null,null,null,null,null,null,null,null,null,0]
[551,null,null,null,null,null,null,null,null,null,null,null,null,null,null,0]
[552,null,null,null,null,null,null,null,null,null,null,null,null,null,null,0]
[553,null,null,null,null,null,null,null,null,null,null,null,null,null,null,0]
[554,null,null,null,null,null,null,null,null,null,null,null,null,null,null,0]
[555,null,null,null,null,null,null,null,null,null,null,null,null,null,null,0]
[556,null,null,null,null,null,null,null,null,null,null,null,null,null,null,0]
[557,null,null,null,null,null,null,null,null,null,null,null,null,null,null,0]
[558,null,null,null,null,null,null,null,null,null,null,null,null,null,null,0]
[559,null,null,null,null,null,null,null,null,null,null,null,null,null,null,0]
[560,null,null,null,null,null,null,null,null,null,null,null,null,null,null,0]
[561,null,null,null,null,null,null,null,null,null,null,null,null,null,null,0]
[562,null,null,null,null,null,null,null,null,null,null,null,null,null,null,0]
[563,null,null,null,null,null,null,null,null,null,null,null,null,null,null,0]
[564,null,null,null,null,null,null,null,null,null,null,null,null,null,null,0]
[565,null,null,null,null,null,null,null,null,null,null,null,null,null,null,0]
[566,null,null,null,null,null,null,null,null,null,null,null,null,null,null,0]
[567,null,null,null,null,null,null,null,null,null,null,null,null,null,null,0]
[568,null,null,null,null,null,null,null,null,null,null,null,null,null,null,0]
[569,null,null,null,null,null,null,null,null,null,null,null,null,null,null,0]
[570,null,null,null,null,null,null,null,null,null,null,null,null,null,null,0]
[571,null,null,null,null,null,null,null,null,null,null,null,null,null,null,0]
[572,null,null,null,null,null,null,null,null,null,null,null,null,null,null,0]
[573,null,null,null,null,null,null,null,null,null,null,null,null,null,null,0]
[574,null,null,null,null,null,null,null,null,null,null,null,null,null,null,0]
[575,null,null,null,null,null,null,null,null,null,null,null,null,null,null,0]
[576,null,null,null,null,null,null,null,null,null,null,null,null,null,null,0]
[577,null,null,null,null,null,null,null,null,null,null,null,null,null,null,{"$f":"SUM(D578:O578)","v":0}]
[578,null,null,null,null,null,null,null,null,null,null,null,null,null,null,0]
[579,null,null,null,null,null,null,null,null,null,null,null,null,null,null,0]
[580,null,null,null,null,null,null,null,null,null,null,null,null,null,null,0]
[581,null,null,null,null,null,null,null,null,null,null,null,null,null,null,0]
[582,null,null,null,null,null,null,null,null,null,null,null,null,null,null,0]
[583,null,null,null,null,null,null,null,null,null,null,null,null,null,null,0]
[584,null,null,null,null,null,null,null,null,null,null,null,null,null,null,0]
[585,null,null,null,null,null,null,null,null,null,null,null,null,null,null,0]
[586,null,null,null,null,null,null,null,null,null,null,null,null,null,null,0]
[587,null,null,null,null,null,null,null,null,null,null,null,null,null,null,0]
[588,null,null,null,null,null,null,null,null,null,null,null,null,null,null,0]
[589,null,null,null,null,null,null,null,null,null,null,null,null,null,null,0]
[590,null,null,null,null,null,null,null,null,null,null,null,null,null,null,0]
[591,null,null,null,null,null,null,null,null,null,null,null,null,null,null,0]
[592,null,null,null,null,null,null,null,null,null,null,null,null,null,null,0]
[593,null,null,null,null,null,null,null,null,null,null,null,null,null,null,0]
[594,null,null,null,null,null,null,null,null,null,null,null,null,null,null,0]
[595,null,null,null,null,null,null,null,null,null,null,null,null,null,null,0]
[596,null,null,null,null,null,null,null,null,null,null,null,null,null,null,0]
[597,null,null,null,null,null,null,null,null,null,null,null,null,null,null,0]
[598,null,null,null,null,null,null,null,null,null,null,null,null,null,null,0]
[599,null,null,null,null,null,null,null,null,null,null,null,null,null,null,0]
[600,null,null,null,null,null,null,null,null,null,null,null,null,null,null,0]
[601,null,null,null,null,null,null,null,null,null,null,null,null,null,null,0]
[602,null,null,null,null,null,null,null,null,null,null,null,null,null,null,0]
[603,null,null,null,null,null,null,null,null,null,null,null,null,null,null,0]
[604,null,null,null,null,null,null,null,null,null,null,null,null,null,null,0]
[605,null,null,null,null,null,null,null,null,null,null,null,null,null,null,0]
[606,null,null,null,null,null,null,null,null,null,null,null,null,null,null,0]
[607,null,null,null,null,null,null,null,null,null,null,null,null,null,null,0]
[608,null,null,null,null,null,null,null,null,null,null,null,null,null,null,0]
[609,null,null,null,null,null,null,null,null,null,null,null,null,null,null,0]
[610,null,null,null,null,null,null,null,null,null,null,null,null,null,null,0]
[611,null,null,null,null,null,null,null,null,null,null,null,null,null,null,0]
[612,null,null,null,null,null,null,null,null,null,null,null,null,null,null,0]
[613,null,null,null,null,null,null,null,null,null,null,null,null,null,null,0]
[614,null,null,null,null,null,null,null,null,null,null,null,null,null,null,0]
[615,null,null,null,null,null,null,null,null,null,null,null,null,null,null,0]
[616,null,null,null,null,null,null,null,null,null,null,null,null,null,null,0]
[617,null,null,null,null,null,null,null,null,null,null,null,null,null,null,0]
[618,null,null,null,null,null,null,null,null,null,null,null,null,null,null,0]
[619,null,null,null,null,null,null,null,null,null,null,null,null,null,null,0]
[620,null,null,null,null,null,null,null,null,null,null,null,null,null,null,0]
[621,null,null,null,null,null,null,null,null,null,null,null,null,null,null,0]
[622,null,null,null,null,null,null,null,null,null,null,null,null,null,null,0]
[623,null,null,null,null,null,null,null,null,null,null,null,null,null,null,0]
[624,null,null,null,null,null,null,null,null,null,null,null,null,null,null,0]
[625,null,null,null,null,null,null,null,null,null,null,null,null,null,null,0]
[626,null,null,null,null,null,null,null,null,null,null,null,null,null,null,0]
[627,null,null,null,null,null,null,null,null,null,null,null,null,null,null,0]
[628,null,null,null,null,null,null,null,null,null,null,null,null,null,null,0]
[629,null,null,null,null,null,null,null,null,null,null,null,null,null,null,0]
[630,null,null,null,null,null,null,null,null,null,null,null,null,null,null,0]
[631,null,null,null,null,null,null,null,null,null,null,null,null,null,null,0]
[632,null,null,null,null,null,null,null,null,null,null,null,null,null,null,0]
[633,null,null,null,null,null,null,null,null,null,null,null,null,null,null,0]
[634,null,null,null,null,null,null,null,null,null,null,null,null,null,null,0]
[635,null,null,null,null,null,null,null,null,null,null,null,null,null,null,0]
[636,null,null,null,null,null,null,null,null,null,null,null,null,null,null,0]
[637,null,null,null,null,null,null,null,null,null,null,null,null,null,null,0]
[638,null,null,null,null,null,null,null,null,null,null,null,null,null,null,0]
[639,null,null,null,null,null,null,null,null,null,null,null,null,null,null,0]
[640,null,null,null,null,null,null,null,null,null,null,null,null,null,null,0]
[641,null,null,null,null,null,null,null,null,null,null,null,null,null,null,{"$f":"SUM(D642:O642)","v":0}]
[642,null,null,null,null,null,null,null,null,null,null,null,null,null,null,0]
[643,null,null,null,null,null,null,null,null,null,null,null,null,null,null,0]
[644,null,null,null,null,null,null,null,null,null,null,null,null,null,null,0]
[645,null,null,null,null,null,null,null,null,null,null,null,null,null,null,0]
[646,null,null,null,null,null,null,null,null,null,null,null,null,null,null,0]
[647,null,null,null,null,null,null,null,null,null,null,null,null,null,null,0]
[648,null,null,null,null,null,null,null,null,null,null,null,null,null,null,0]
[649,null,null,null,null,null,null,null,null,null,null,null,null,null,null,0]
[650,null,null,null,null,null,null,null,null,null,null,null,null,null,null,0]
[651,null,null,null,null,null,null,null,null,null,null,null,null,null,null,0]
[652,null,null,null,null,null,null,null,null,null,null,null,null,null,null,0]
[653,null,null,null,null,null,null,null,null,null,null,null,null,null,null,0]

{"sheet":"قسيمة الإشتراك","index":1,"n_rows":17,"n_cols":8,"rows_kept":17,"cut":false,"hidden":false,"merged":[[0,2,0,7],[7,6,8,6],[7,7,8,7],[12,6,14,6],[12,7,14,7],[2,1,2,2],[9,6,11,7],[2,7,3,7],[2,6,3,6]]}
[null,null,"             كشف حساب مشترك"]
[]
[null,"رقم المساهم",null,1,null,null,"اسم المساهم",{"$f":"VLOOKUP(D3,'كشف المشتركين'!B2:O477,2,0)","v":"محمد"}]
[]
[null,"ت","الشهر","المبلغ","المتابعة",null,"الوقت",{"$f":"NOW()","v":43504.989560300928}]
[null,1,"شهر 1",{"$f":"SUMIF('كشف المشتركين'!$B$2:$B$2000,$D$3,'كشف المشتركين'!$D$2:$D$2000)","v":20},null,null,"التاريخ",{"$f":"NOW()","v":"2019-02-08T23:44:58.010"}]
[null,2,"شهر2",{"$f":"SUMIF('كشف المشتركين'!$B$2:$B$2000,$D$3,'كشف المشتركين'!$E$2:$E$2000)","v":0}]
[null,3,"شهر 3",{"$f":"SUMIF('كشف المشتركين'!$B$2:$B$2000,$D$3,'كشف المشتركين'!$F$2:$F$2000)","v":20},null,null,"إجمالي \nالدفعات الشهرية",{"$f":"SUM(D6:D17)","v":179}]
[null,4,"شهر 4",{"$f":"SUMIF('كشف المشتركين'!$B$2:$B$2000,$D$3,'كشف المشتركين'!$G$2:$G$2000)","v":20}]
[null,5,"شهر 5",{"$f":"SUMIF('كشف المشتركين'!$B$2:$B$2000,$D$3,'كشف المشتركين'!$H$2:$H$2000)","v":20},null,null,{"$f":"NoToTxt(H8,\"ديناراً\",\"قرش\")","v":"فقط مائة وتسعة وسبعون ديناراً"}]
[null,6,"شهر 6",{"$f":"SUMIF('كشف المشتركين'!$B$2:$B$2000,$D$3,'كشف المشتركين'!$I$2:$I$2000)","v":0}]
[null,7,"شهر 7",{"$f":"SUMIF('كشف المشتركين'!$B$2:$B$2000,$D$3,'كشف المشتركين'!$J$2:$J$2000)","v":20}]
[null,8,"شهر 8",{"$f":"SUMIF('كشف المشتركين'!$B$2:$B$2000,$D$3,'كشف المشتركين'!$K$2:$K$2000)","v":20},null,null,"توقيع المساهم"]
[null,9,"شهر 9",{"$f":"SUMIF('كشف المشتركين'!$B$2:$B$2000,$D$3,'كشف المشتركين'!$L$2:$L$2000)","v":0}]
[null,10,"شهر 10",{"$f":"SUMIF('كشف المشتركين'!$B$2:$B$2000,$D$3,'كشف المشتركين'!$M$2:$M$2000)","v":20}]
[null,11,"شهر 11",{"$f":"SUMIF('كشف المشتركين'!$B$2:$B$2000,$D$3,'كشف المشتركين'!$N$2:$N$2000)","v":20}]
[null,12,"شهر 12",{"$f":"SUMIF('كشف المشتركين'!$B$2:$B$2000,$D$3,'كشف المشتركين'!$O$2:$O$2000)","v":19}]